fUST/lending_fUST_20241024
["ID","MTS","AMOUNT","RATE_DAILY","PERIOD"]
[340748631,1729776643271,-91.67753,0.00024113,2]
[340748632,1729776643286,-74.989136,0.00024113,2]
[340748633,1729776643296,-158.0,0.0002441,2]
[340748634,1729776643306,-330.32751591,0.0002449,2]
[340748635,1729776643316,-17790.11681651,0.0002449,3]
[340748647,1729776646289,-1343.46182849,0.0002449,3]
[340748648,1729776646299,-48656.53817151,0.0002449,3]
[340748649,1729776679234,160.0,0.00013973,2]
[340748664,1729777218351,187.251214,0.00013973,2]
[340748665,1729777325240,2796.6873352,0.00022,60]
[340748709,1729777718834,160.0,0.00013973,2]
[340748752,1729777838328,-166.666666,0.00022902,2]
[340748753,1729777838339,-150.04692229,0.00023196,2]
[340748754,1729777838349,-299.38991171,0.00023286,2]
[340748782,1729777840253,-0.61008829,0.00023286,2]
[340748784,1729777840263,-3497.77211106,0.00023287,3]
[340749404,1729777846460,-16915.84672224,0.00023287,3]
[340749406,1729777846471,-210.97,0.00023287,3]
[340749409,1729777846480,-632.94,0.00023287,3]
[340749410,1729777846490,-220.21834394,0.00023296,2]
[340749412,1729777846500,-515.06866547,0.00023296,2]
[340749414,1729777846510,-1742.38,0.00023296,2]
[340749417,1729777846519,-500.0,0.00023296,2]
[340749418,1729777846529,-1812.19,0.00023296,2]
[340749421,1729777846540,-524.22803745,0.00023296,2]
[340749422,1729777846550,-1989.38,0.00023296,2]
[340749424,1729777846560,-2191.81,0.00023296,2]
[340749426,1729777846569,-728.36,0.00023296,2]
[340749428,1729777846578,-4717.52,0.00023296,2]
[340749430,1729777846588,-500.0,0.00023296,2]
[340749432,1729777846598,-500.0,0.00023296,2]
[340749434,1729777846607,-1235.55,0.00023296,2]
[340749436,1729777846617,-2480.29,0.00023296,2]
[340749438,1729777846627,-1323.75,0.00023296,2]
[340749440,1729777846636,-707.25,0.00023296,2]
[340749442,1729777846646,-612.36,0.00023296,2]
[340749444,1729777846655,-500.0,0.00023296,2]
[340749446,1729777846664,-500.0,0.00023296,2]
[340749448,1729777846674,-500.0,0.00023296,2]
[340749450,1729777846683,-500.0,0.00023296,2]
[340749452,1729777846693,-176.23724645,0.00023296,2]
[340749454,1729777846702,-295.86678519,0.00023296,2]
[340749456,1729777846712,-500.0,0.00023296,2]
[340749459,1729777846722,-500.0,0.00023296,2]
[340749461,1729777846732,-645.94,0.00023297,2]
[340749463,1729777846742,-535.58213771,0.00023297,2]
[340749465,1729777846751,-500.0,0.00023297,2]
[340749467,1729777846761,-500.0,0.00023297,2]
[340749469,1729777846770,-523.00253349,0.00023297,2]
[340749471,1729777846781,-1309.56,0.00023297,2]
[340749473,1729777846790,-500.0,0.00023297,2]
[340749475,1729777846800,-500.0,0.00023297,2]
[340749477,1729777846811,-500.0,0.00023297,2]
[340749479,1729777846821,-507.06872499,0.00023297,2]
[340749481,1729777846831,-500.0,0.00023297,2]
[340749483,1729777846840,-1970.87,0.00023297,2]
[340749485,1729777846849,-587.14,0.00023297,2]
[340749487,1729777846859,-500.0,0.00023297,2]
[340749489,1729777846868,-500.0,0.00023297,2]
[340749491,1729777846878,-500.0,0.00023297,2]
[340749493,1729777846887,-500.0,0.00023297,2]
[340749495,1729777846896,-500.0,0.00023297,2]
[340749497,1729777846906,-500.0,0.00023297,2]
[340749499,1729777846915,-506.49321637,0.00023297,2]
[340749501,1729777846924,-500.0,0.00023297,2]
[340749503,1729777846934,-500.0,0.00023297,2]
[340749505,1729777846944,-1391.88,0.00023297,2]
[340749507,1729777846954,-500.0,0.00023297,2]
[340749509,1729777846964,-1685.76,0.00023297,2]
[340749511,1729777846974,-503.87385713,0.00023297,2]
[340749513,1729777846983,-659.45,0.00023297,2]
[340749515,1729777846992,-908.89,0.00023297,2]
[340749517,1729777847001,-500.0,0.00023297,2]
[340749519,1729777847011,-47096.4,0.00023297,2]
[340749522,1729777847024,-500.0,0.00023297,2]
[340749524,1729777847035,-500.0,0.00023297,2]
[340749526,1729777847045,-500.0,0.00023297,2]
[340749528,1729777847055,-8762.81,0.00023297,2]
[340749530,1729777847067,-500.0,0.00023297,2]
[340749532,1729777847077,-4062.11,0.00023297,2]
[340749534,1729777847086,-238.09428238,0.00023297,2]
[340749536,1729777847096,-500.0,0.00023297,2]
[340749538,1729777847105,-500.0,0.00023297,2]
[340749540,1729777847114,-506.56431639,0.00023297,2]
[340749542,1729777847123,-2048.14,0.00023297,2]
[340749544,1729777847133,-549.78109963,0.00023297,2]
[340749546,1729777847142,-500.0,0.00023297,2]
[340749548,1729777847152,-1433.28,0.00023297,2]
[340749550,1729777847161,-500.0,0.00023297,2]
[340749552,1729777847171,-506.39319105,0.00023297,2]
[340749554,1729777847180,-500.0,0.00023297,2]
[340749556,1729777847190,-500.0,0.00023297,2]
[340749558,1729777847199,-500.0,0.00023297,2]
[340749560,1729777847209,-253.06,0.00023297,2]
[340749562,1729777847220,-794.44,0.00023297,2]
[340749564,1729777847232,-2011.88,0.00023297,2]
[340749566,1729777847242,-500.0,0.00023297,2]
[340749568,1729777847252,-500.0,0.00023297,2]
[340749570,1729777847262,-576.37,0.00023297,2]
[340749572,1729777847271,-500.0,0.00023297,2]
[340749574,1729777847281,-151.0,0.00023297,7]
[340749576,1729777847290,-500.0,0.00023297,2]
[340749578,1729777847300,-500.0,0.00023297,2]
[340749580,1729777847311,-500.0,0.00023297,2]
[340749582,1729777847320,-500.0,0.00023297,2]
[340749584,1729777847330,-1688.0,0.00023297,2]
[340749586,1729777847340,-506.59363332,0.00023297,2]
[340749588,1729777847351,-500.0,0.00023297,2]
[340749590,1729777847362,-4401.05,0.00023297,2]
[340749592,1729777847371,-500.0,0.00023297,2]
[340749594,1729777847380,-500.0,0.00023297,2]
[340749596,1729777847389,-644.39,0.00023297,2]
[340749598,1729777847398,-151.0,0.00023297,7]
[340749600,1729777847407,-500.0,0.00023297,2]
[340749602,1729777847416,-151.0,0.00023297,7]
[340749604,1729777847426,-1981.85,0.00023297,2]
[340749606,1729777847435,-500.0,0.00023297,2]
[340749608,1729777847444,-151.0,0.00023297,7]
[340749611,1729777847454,-500.0,0.00023297,2]
[340749613,1729777847463,-502.48737042,0.00023297,2]
[340749615,1729777847473,-560.50435887,0.00023297,2]
[340749617,1729777847482,-500.0,0.00023297,2]
[340749619,1729777847491,-500.0,0.00023297,2]
[340749621,1729777847500,-434.653483,0.00023297,7]
[340749622,1729777847509,-723.9,0.00023297,2]
[340749624,1729777847518,-500.0,0.00023297,2]
[340749626,1729777847527,-434.653483,0.00023297,7]
[340749629,1729777847537,-618.46,0.00023297,2]
[340749630,1729777847546,-1217.97,0.00023297,2]
[340749633,1729777847556,-500.0,0.00023297,2]
[340749635,1729777847566,-501.70483796,0.00023297,2]
[340749637,1729777847576,-500.0,0.00023297,2]
[340749639,1729777847585,-151.0,0.00023297,7]
[340749641,1729777847594,-276.57893817,0.00023297,2]
[340749643,1729777847603,-500.0,0.00023297,2]
[340749645,1729777847613,-756.57,0.00023297,2]
[340749647,1729777847622,-500.0,0.00023297,2]
[340749649,1729777847632,-1125.98,0.00023297,2]
[340749651,1729777847641,-501.92897479,0.00023297,2]
[340749653,1729777847651,-500.0,0.00023297,2]
[340749654,1729777847660,-151.0,0.00023297,7]
[340749655,1729777847670,-151.0,0.00023297,7]
[340749656,1729777847679,-151.0,0.00023297,7]
[340749657,1729777847688,-151.0,0.00023297,7]
[340749658,1729777847698,-151.0,0.00023297,7]
[340749659,1729777847707,-151.0,0.00023297,7]
[340749660,1729777847717,-496.61093168,0.00023297,2]
[340749661,1729777847726,-705.81,0.00023297,2]
[340749662,1729777847735,-151.0,0.00023297,7]
[340749663,1729777847745,-151.0,0.00023297,7]
[340749665,1729777847754,-232.692048,0.00023297,7]
[340749667,1729777847764,-500.0,0.00023297,2]
[340749669,1729777847774,-500.0,0.00023297,2]
[340749671,1729777847783,-500.0,0.00023297,2]
[340749673,1729777847793,-7876.82,0.00023297,2]
[340749675,1729777847802,-766.342753,0.00023297,7]
[340749677,1729777847818,-766.342753,0.00023297,7]
[340749679,1729777847827,-500.0,0.00023297,2]
[340749681,1729777847837,-766.342753,0.00023297,7]
[340749683,1729777847846,-766.342753,0.00023297,7]
[340749685,1729777847856,-766.342753,0.00023297,7]
[340749687,1729777847865,-766.342753,0.00023297,7]
[340749689,1729777847875,-151.0,0.00023297,7]
[340749691,1729777847885,-151.0,0.00023297,7]
[340749693,1729777847895,-1641.7,0.00023297,2]
[340749695,1729777847904,-151.0,0.00023297,7]
[340749697,1729777847913,-1259.84,0.00023297,2]
[340749699,1729777847922,-151.0,0.00023297,7]
[340749701,1729777847932,-151.0,0.00023297,7]
[340749703,1729777847942,-151.0,0.00023297,7]
[340749705,1729777847953,-151.0,0.00023297,7]
[340749707,1729777847963,-151.0,0.00023297,7]
[340749709,1729777847973,-151.0,0.00023297,7]
[340749712,1729777847983,-500.0,0.00023297,2]
[340749714,1729777847993,-500.0,0.00023297,2]
[340749716,1729777848003,-539.33939444,0.00023297,2]
[340749718,1729777848013,-609.14,0.00023297,2]
[340749720,1729777848022,-151.0,0.00023297,7]
[340749722,1729777848031,-663.73,0.00023297,2]
[340749724,1729777848041,-151.0,0.00023297,7]
[340749726,1729777848050,-976.64,0.00023297,2]
[340749728,1729777848065,-500.0,0.00023297,2]
[340749730,1729777848074,-1271.94,0.00023297,2]
[340749732,1729777848083,-627.41,0.00023297,2]
[340749734,1729777848094,-500.49116502,0.00023297,2]
[340749736,1729777848104,-151.0,0.00023297,7]
[340749738,1729777848113,-500.0,0.00023297,2]
[340749739,1729777848122,-502.23966993,0.00023297,2]
[340749741,1729777848132,-500.0,0.00023297,2]
[340749743,1729777848142,-1023.43,0.00023297,2]
[340749745,1729777848152,-500.0,0.00023297,2]
[340749747,1729777848162,-1629.66,0.00023297,2]
[340749749,1729777848171,-1645.58,0.00023297,2]
[340749752,1729777848182,-22706.169216,0.00023298,2]
[340749754,1729777848192,-244.359124,0.00023298,7]
[340749756,1729777848202,-151.0,0.00023298,7]
[340749758,1729777848212,-151.0,0.00023298,7]
[340749760,1729777848221,-151.0,0.00023298,7]
[340749762,1729777848231,-151.0,0.00023298,7]
[340749763,1729777848241,-151.0,0.00023298,7]
[340749765,1729777848250,-434.653483,0.00023298,7]
[340749767,1729777848259,-434.653483,0.00023298,7]
[340749769,1729777848270,-151.0,0.00023298,7]
[340749771,1729777848279,-151.0,0.00023298,7]
[340749773,1729777848289,-766.342753,0.00023298,7]
[340749775,1729777848300,-766.342753,0.00023298,7]
[340749777,1729777848316,-151.0,0.00023298,7]
[340749779,1729777848330,-151.0,0.00023298,7]
[340749781,1729777848340,-151.0,0.00023298,7]
[340749783,1729777848351,-61240.8565,0.00023561,3]
[340749785,1729777848361,-151.0,0.00023561,7]
[340749787,1729777848371,-766.342753,0.00023561,7]
[340749789,1729777848381,-766.342753,0.00023561,7]
[340749791,1729777848390,-151.0,0.00023561,7]
[340749793,1729777848399,-151.0,0.00023561,7]
[340749795,1729777848409,-151.0,0.00023561,7]
[340749797,1729777848418,-192.71631399,0.00023569,2]
[340749799,1729777848428,-187.68740336,0.00023569,2]
[340749801,1729777848438,-185.63918534,0.00023569,2]
[340749803,1729777848448,-219.14981952,0.00023569,2]
[340749805,1729777848458,-1742.38,0.0002357,2]
[340749807,1729777848467,-500.0,0.0002357,2]
[340749809,1729777848477,-1812.19,0.0002357,2]
[340749811,1729777848487,-1989.38,0.0002357,2]
[340749813,1729777848497,-2191.81,0.0002357,2]
[340749834,1729777848682,-728.36,0.0002357,2]
[340749836,1729777848694,-4717.52,0.0002357,2]
[340749838,1729777848703,-500.0,0.0002357,2]
[340749840,1729777848713,-500.0,0.0002357,2]
[340749842,1729777848723,-1235.55,0.0002357,2]
[340749844,1729777848732,-2480.29,0.0002357,2]
[340749846,1729777848742,-1323.75,0.0002357,2]
[340749848,1729777848752,-707.25,0.0002357,2]
[340749850,1729777848761,-612.36,0.0002357,2]
[340749852,1729777848772,-500.0,0.0002357,2]
[340749854,1729777848782,-645.94,0.00023571,2]
[340749856,1729777848792,-500.0,0.00023571,2]
[340749858,1729777848802,-500.0,0.00023571,2]
[340749860,1729777848813,-1309.56,0.00023571,2]
[340749862,1729777848822,-500.0,0.00023571,2]
[340749864,1729777848831,-500.0,0.00023571,2]
[340749866,1729777848842,-500.0,0.00023571,2]
[340749868,1729777848852,-500.0,0.00023571,2]
[340749870,1729777848862,-1970.87,0.00023571,2]
[340749872,1729777848872,-587.14,0.00023571,2]
[340749874,1729777848882,-500.0,0.00023571,2]
[340749877,1729777848891,-500.0,0.00023571,2]
[340749878,1729777848902,-500.0,0.00023571,2]
[340749881,1729777848912,-500.0,0.00023571,2]
[340749883,1729777848921,-500.0,0.00023571,2]
[340749885,1729777848930,-500.0,0.00023571,2]
[340749887,1729777848944,-500.0,0.00023571,2]
[340749889,1729777848954,-500.0,0.00023571,2]
[340749891,1729777848964,-1391.88,0.00023571,2]
[340749893,1729777848975,-500.0,0.00023571,2]
[340749895,1729777848985,-1685.76,0.00023571,2]
[340749897,1729777848995,-659.45,0.00023571,2]
[340749899,1729777849004,-908.89,0.00023571,2]
[340749901,1729777849014,-500.0,0.00023571,2]
[340749904,1729777849024,-47096.4,0.00023571,2]
[340749906,1729777849034,-500.0,0.00023571,2]
[340749908,1729777849043,-500.0,0.00023571,2]
[340749910,1729777849053,-8762.81,0.00023571,2]
[340749912,1729777849065,-500.0,0.00023571,2]
[340749914,1729777849075,-4062.11,0.00023571,2]
[340749916,1729777849085,-500.0,0.00023571,2]
[340749917,1729777849094,-2048.14,0.00023571,2]
[340749919,1729777849104,-151.0,0.00023571,7]
[340749922,1729777849114,-151.0,0.00023571,7]
[340749924,1729777849124,-500.0,0.00023571,2]
[340749926,1729777849134,-151.0,0.00023571,7]
[340749928,1729777849144,-151.0,0.00023571,7]
[340749930,1729777849155,-1433.28,0.00023571,2]
[340749932,1729777849165,-514.43655353,0.00023571,2]
[340749934,1729777849176,-502.50890525,0.00023571,2]
[340749936,1729777849186,-500.0,0.00023571,2]
[340749938,1729777849196,-500.0,0.00023571,2]
[340749940,1729777849206,-253.06,0.00023571,2]
[340749942,1729777849215,-794.44,0.00023571,2]
[340749944,1729777849225,-2011.88,0.00023571,2]
[340749946,1729777849236,-500.0,0.00023571,2]
[340749948,1729777849249,-500.0,0.00023571,2]
[340749950,1729777849259,-576.37,0.00023571,2]
[340749952,1729777849269,-500.0,0.00023571,2]
[340749954,1729777849279,-500.0,0.00023571,2]
[340749956,1729777849290,-324.06154698,0.00023571,2]
[340749958,1729777849301,-225.12997132,0.00023571,2]
[340749960,1729777849312,-503.62701041,0.00023571,2]
[340749962,1729777849321,-1688.0,0.00023571,2]
[340749964,1729777849332,-285.74128657,0.00023571,2]
[340749966,1729777849342,-4401.05,0.00023571,2]
[340749968,1729777849353,-500.0,0.00023571,2]
[340749970,1729777849363,-500.0,0.00023571,2]
[340749973,1729777849375,-644.39,0.00023571,2]
[340749975,1729777849384,-500.0,0.00023571,2]
[340749977,1729777849394,-151.0,0.00023571,7]
[340749979,1729777849404,-151.0,0.00023571,7]
[340749981,1729777849413,-1981.85,0.00023571,2]
[340749983,1729777849423,-603.07677322,0.00023571,2]
[340749985,1729777849433,-500.0,0.00023571,2]
[340749987,1729777849443,-500.0,0.00023571,2]
[340749989,1729777849453,-500.0,0.00023571,2]
[340749991,1729777849463,-434.653483,0.00023571,7]
[340749993,1729777849474,-723.9,0.00023571,2]
[340749995,1729777849483,-434.653483,0.00023571,7]
[340749997,1729777849493,-434.653483,0.00023571,7]
[340749999,1729777849502,-434.653483,0.00023571,7]
[340750001,1729777849512,-500.0,0.00023571,2]
[340750003,1729777849521,-269.38994328,0.00023571,7]
[340752184,1729778320587,173.625607,0.00013973,2]
[340752268,1729779032533,-157.758289,0.00021918,2]
[340752269,1729779032544,-166.666666,0.00021918,2]
[340752271,1729779032554,-475.6294219,0.00022836,2]
[340752272,1729779032564,-287.0,0.00022999,2]
[340752274,1729779032574,-500.0,0.00022999,2]
[340752276,1729779032584,-500.0,0.00022999,2]
[340752278,1729779032594,-648.31,0.00022999,2]
[340752280,1729779032603,-4047.37751078,0.00023,2]
[340752289,1729779038724,-253.0,0.00023,2]
[340752301,1729779040468,-699.62248922,0.00023,2]
[340752303,1729779040481,-707.92179197,0.00023,2]
[340752885,1729779046470,-19399.49204154,0.00023,2]
[340752887,1729779046480,-624.7234542,0.00023176,2]
[340752889,1729779046490,-624.72345416,0.00023179,2]
[340752891,1729779046500,-624.72345416,0.00023181,2]
[340752893,1729779046511,-624.72345416,0.00023184,2]
[340752895,1729779046520,-624.72345416,0.00023186,2]
[340752897,1729779046529,-402.50317075,0.00023265,2]
[340752922,1729779046836,-312.98,0.00023265,3]
[340752925,1729779046855,-156.49,0.00023265,3]
[340752928,1729779046873,-469.48,0.00023265,3]
[340752930,1729779046883,-500.0,0.00023266,2]
[340752932,1729779046893,-10099.2886687,0.00023266,3]
[340752934,1729779046903,-16330.8950667,0.00023266,3]
[340752936,1729779046914,-500.0,0.00023272,2]
[340752938,1729779046923,-500.26631832,0.00023273,2]
[340752940,1729779046933,-503.26686264,0.00023273,2]
[340752942,1729779046943,-502.91285821,0.00023273,2]
[340752944,1729779046952,-502.00552534,0.00023273,2]
[340752946,1729779046962,-500.63110869,0.00023273,2]
[340752948,1729779046971,-500.0,0.00023273,2]
[340752950,1729779046981,-500.0,0.00023273,2]
[340752952,1729779046990,-500.0,0.00023273,2]
[340752954,1729779047000,-648.31,0.00023273,2]
[340752956,1729779047011,-1213.43,0.00023275,2]
[340752958,1729779047021,-500.0,0.00023275,2]
[340752960,1729779047030,-1275.89,0.00023275,2]
[340752962,1729779047040,-604.49,0.00023275,2]
[340752965,1729779047049,-638.66,0.00023275,2]
[340752967,1729779047059,-1597.18,0.00023275,2]
[340752969,1729779047068,-3723.6,0.00023275,2]
[340752971,1729779047077,-228.4455098,0.00023275,2]
[340752973,1729779047087,-449.69579542,0.00023275,2]
[340752976,1729779047106,-1844.22,0.00023275,2]
[340752978,1729779047117,-1661.17,0.00023275,2]
[340752980,1729779047127,-528.34,0.00023275,2]
[340752982,1729779047137,-1823.6,0.00023275,2]
[340752984,1729779047148,-1547.33,0.00023275,2]
[340752986,1729779047158,-2009.16,0.00023275,2]
[340752988,1729779047171,-590.69,0.00023275,2]
[340752990,1729779047181,-667.66,0.00023275,2]
[340752992,1729779047191,-499.0,0.00023275,2]
[340752994,1729779047201,-4324.39,0.00023275,2]
[340752997,1729779047211,-1132.59,0.00023275,2]
[340752999,1729779047221,-592.69,0.00023275,2]
[340753001,1729779047230,-199.54075391,0.00023275,2]
[340753003,1729779047240,-510.70225335,0.00023275,2]
[340753005,1729779047250,-500.0,0.00023275,2]
[340753007,1729779047261,-188.8230901,0.00023275,2]
[340753009,1729779047270,-428.10101017,0.00023275,2]
[340753011,1729779047281,-602.23856985,0.00023275,2]
[340753013,1729779047292,-10099.2886687,0.00023275,3]
[340753015,1729779047302,-16330.8950667,0.00023275,3]
[340753017,1729779047312,-10099.2886687,0.00023276,3]
[340753020,1729779047322,-16330.8950667,0.00023276,3]
[340753022,1729779047332,-153.40487366,0.00023276,2]
[340753024,1729779047342,-383.171376,0.00023276,7]
[340753026,1729779047353,-383.171376,0.00023276,7]
[340753028,1729779047363,-383.171376,0.00023276,7]
[340753030,1729779047373,-383.171376,0.00023276,7]
[340753032,1729779047383,-151.0,0.00023276,7]
[340753034,1729779047393,-151.0,0.00023276,7]
[340753036,1729779047403,-151.0,0.00023276,7]
[340753038,1729779047415,-151.0,0.00023276,7]
[340753040,1729779047425,-50496.4433435,0.00023276,3]
[340753042,1729779047434,-40236.8484653,0.00023276,3]
[340756232,1729779402817,173.625607,0.00013973,2]
[340756359,1729780246507,-234.603629,0.00021918,2]
[340756361,1729780246517,-1000.0,0.00022,2]
[340756362,1729780246532,-160.609006,0.00022001,2]
[340756363,1729780246542,-160.0,0.0002237,2]
[340756364,1729780246553,-1221.74281997,0.00022745,2]
[340756365,1729780246565,-383.44886384,0.00022888,2]
[340756366,1729780246576,-156.49,0.00022969,3]
[340756367,1729780246588,-500.0,0.00022973,2]
[340756368,1729780246605,-500.0,0.00022973,2]
[340756369,1729780246620,-300.0,0.00022977,2]
[340756370,1729780246630,-500.0,0.00022977,2]
[340756371,1729780246640,-592.11,0.00022977,2]
[340756372,1729780246652,-594.29,0.00022977,2]
[340756373,1729780246662,-1200.43,0.00022977,2]
[340756374,1729780246672,-500.0,0.00022977,2]
[340756375,1729780246683,-500.0,0.00022977,2]
[340756376,1729780246692,-268.33544717,0.00022978,2]
[340756377,1729780246703,-4810.26069343,0.00022978,3]
[340756398,1729780693267,273.37336231,0.00016,2]
[340756399,1729780738124,273.37336231,0.00016,2]
[340756400,1729780753479,273.37336231,0.00016,2]
[340756401,1729780768860,273.37336231,0.00016,2]
[340756402,1729780784277,273.37336231,0.00016,2]
[340756403,1729780799429,273.37336231,0.00016,2]
[340756408,1729780814737,273.37336231,0.00016,2]
[340756409,1729780830659,273.37336231,0.00016,2]
[340756410,1729780878000,162.906402,0.00013973,2]
[340756534,1729781432690,-597.33679623,0.00020541,3]
[340756536,1729781432701,-300.0,0.00020641,2]
[340756538,1729781432711,-300.0,0.00020641,2]
[340756540,1729781432722,-24900.0,0.00020642,2]
[340756542,1729781432733,-150.04692229,0.00020864,2]
[340756544,1729781432742,-1041.8723202,0.00020964,2]
[340756545,1729781432751,-243.439171,0.00021702,2]
[340756547,1729781432760,-526.49580198,0.00021907,2]
[340756550,1729781432770,-22961.8168716,0.00021907,3]
[340756553,1729781432779,-413.89,0.00021907,3]
[340756556,1729781432790,-206.94,0.00021907,3]
[340756558,1729781432799,-620.87,0.00021907,3]
[340756560,1729781432809,-6303.13516716,0.00021915,2]
[340756562,1729781432819,-168241.0399428,0.00021915,2]
[340756564,1729781432828,-500.0,0.00021916,2]
[340756566,1729781432838,-500.0,0.00021916,2]
[340756568,1729781432847,-500.0,0.00021916,2]
[340756571,1729781432857,-500.0,0.00021916,2]
[340756572,1729781432866,-500.0,0.00021916,2]
[340756574,1729781432877,-500.0,0.00021916,2]
[340756576,1729781432887,-500.0,0.00021916,2]
[340756578,1729781432898,-500.0,0.00021916,2]
[340756580,1729781432908,-500.0,0.00021916,2]
[340756582,1729781432918,-500.0,0.00021916,2]
[340756584,1729781432927,-500.0,0.00021916,2]
[340756586,1729781432937,-500.0,0.00021916,2]
[340756587,1729781432946,-500.0,0.00021916,2]
[340756589,1729781432955,-500.0,0.00021916,2]
[340756590,1729781432965,-500.0,0.00021916,2]
[340756591,1729781432975,-500.0,0.00021916,2]
[340756592,1729781432987,-500.0,0.00021916,2]
[340756593,1729781432997,-500.0,0.00021916,2]
[340756594,1729781433007,-500.0,0.00021916,2]
[340756596,1729781433017,-500.0,0.00021916,2]
[340756598,1729781433027,-500.0,0.00021916,2]
[340756599,1729781433037,-500.0,0.00021916,2]
[340756601,1729781433047,-500.0,0.00021916,2]
[340756602,1729781433058,-500.0,0.00021916,2]
[340756603,1729781433068,-500.0,0.00021916,2]
[340756604,1729781433078,-500.0,0.00021916,2]
[340756605,1729781433088,-500.0,0.00021916,2]
[340756606,1729781433098,-500.0,0.00021916,2]
[340756607,1729781433107,-500.0,0.00021916,2]
[340756608,1729781433119,-500.0,0.00021916,2]
[340756609,1729781433130,-362.87042622,0.00021916,2]
[340756610,1729781433140,-500.0,0.00021916,2]
[340756611,1729781433151,-500.0,0.00021916,2]
[340756612,1729781433160,-500.0,0.00021916,2]
[340756613,1729781433170,-500.0,0.00021916,2]
[340756614,1729781433180,-500.0,0.00021916,2]
[340756615,1729781433190,-500.0,0.00021916,2]
[340756616,1729781433201,-500.0,0.00021916,2]
[340756617,1729781433211,-500.0,0.00021916,2]
[340756618,1729781433222,-500.0,0.00021916,2]
[340756619,1729781433233,-500.0,0.00021916,2]
[340756620,1729781433244,-500.0,0.00021916,2]
[340756621,1729781433255,-500.0,0.00021916,2]
[340756622,1729781433265,-500.0,0.00021916,2]
[340756623,1729781433275,-500.0,0.00021916,2]
[340756624,1729781433285,-500.0,0.00021916,2]
[340756625,1729781433296,-500.0,0.00021916,2]
[340756626,1729781433306,-500.0,0.00021916,2]
[340756627,1729781433316,-500.0,0.00021916,2]
[340756628,1729781433326,-500.0,0.00021916,2]
[340756629,1729781433335,-249.99999999,0.00021916,2]
[340756630,1729781433345,-500.0,0.00021916,2]
[340756631,1729781433356,-500.0,0.00021916,2]
[340756632,1729781433365,-500.0,0.00021916,2]
[340756633,1729781433374,-567.44,0.00021917,2]
[340756634,1729781433384,-500.0,0.00021917,2]
[340756635,1729781433393,-500.0,0.00021917,2]
[340756636,1729781433403,-500.0,0.00021917,2]
[340756637,1729781433413,-344.89389811,0.00021917,2]
[340756638,1729781433422,-500.0,0.00021917,2]
[340756639,1729781433432,-538.22,0.00021917,2]
[340756640,1729781433442,-1150.41,0.00021917,2]
[340756641,1729781433452,-500.0,0.00021917,2]
[340756642,1729781433461,-500.0,0.00021917,2]
[340756643,1729781433471,-500.0,0.00021917,2]
[340756644,1729781433481,-500.0,0.00021917,2]
[340756645,1729781433491,-1806.63,0.00021917,2]
[340756646,1729781433500,-500.0,0.00021917,2]
[340756647,1729781433509,-373.27782247,0.00021917,2]
[340756648,1729781433519,-1085.4,0.00021917,2]
[340756649,1729781433529,-505.63164447,0.00021917,2]
[340756650,1729781433539,-1545.28,0.00021917,2]